[Event "GER-chW 2019"]
[Site "Magdeburg"]
[Date "2019.05.30"]
[Round "7.1"]
[White "Schulze, Lara"]
[Black "Koehler, Inken"]
[Result "0-1"]
[ECO "C10"]
[WhiteElo "2160"]
[BlackElo "1979"]
[Annotator "ChessBase"]
[PlyCount "132"]
[EventDate "2019.05.26"]
[EventType "tourn"]
[EventCountry "GER"]
[SourceTitle "playchess.com"]
[Source "ChessBase"]
[SourceQuality "1"]
[TimeControl "40/5400+30:1800+30"]

1. e4 {[%emt 0:00:00]} e6 {[%emt 0:00:00]} 2. d4 {[%emt 0:00:00]} d5 {[%emt 0:00:00]} 3. Nd2 {[%emt 0:00:00]} dxe4 {[%emt 0:00:00]} 4. Nxe4 {[%emt 0:00:06]} Bd7 {[%emt 0:00:00]} 5. Nf3 {[%emt 0:00:32]} Bc6 {[%emt 0:00:11]} 6. Bd3 {[%emt 0:00:40]} Nd7 {[%emt 0:00:23]} 7. O-O {[%emt 0:00:42]} Ngf6 {[%emt 0:00:20]} 8. Ng3 {[%emt 0:01:04]} Be7 {[%emt 0:00:46]} 9. Re1 {[%emt 0:04:11]} O-O {[%emt 0:00:56]} 10. Qe2 {[%emt 0:04:41]} Bxf3 {[%emt 0:06:14]} 11. Qxf3 {[%emt 0:00:02]} c6 {[%emt 0:00:09]} 12. c4 {[%emt 0:11:18]} Re8 {[%emt 0:03:10]} 13. Bd2 {[%emt 0:11:34]} Bf8 {[%emt 0:02:48]} 14. Bc3 {[%emt 0:00:59]} Qc7 {[%emt 0:01:32]} 15. Qe2 {[%emt 0:02:42]} Rad8 {[%emt 0:05:38]} 16. Bc2 {[%emt 0:02:44]} g6 {[%emt 0:04:52]} 17. b4 {[%emt 0:06:08]} Bg7 {[%emt 0:06:46]} 18. Bb3 {[%emt 0:09:13]} b5 {[%emt 0:09:13]} 19. c5 {[%emt 0:11:27]} Nb8 {[%emt 0:10:36]} 20. a3 {[%emt 0:08:01]} Nd5 {[%emt 0:01:50]} 21. Bb2 {[%emt 0:00:45]} a5 {[%emt 0:07:39]} 22. bxa5 {[%emt 0:00:24]} Qxa5 {[%emt 0:00:07]} 23. Ne4 {[%emt 0:01:33]} Qc7 {[%emt 0:17:48]} 24. a4 {[%emt 0:06:00]} b4 {[%emt 0:05:18]} 25. Nd6 {[%emt 0:04:13]} Rxd6 {[%emt 0:01:17]} 26. cxd6 {[%emt 0:00:01]} Qxd6 {[%emt 0:00:07]} 27. a5 {[%emt 0:01:27]} Nd7 {[%emt 0:02:48]} 28. a6 {[%emt 0:03:12]} Ra8 {[%emt 0:00:39]} 29. a7 {[%emt 0:01:37]} Nc7 {[%emt 0:01:48]} 30. Qc4 {[%emt 0:05:06]} Nb5 {[%emt 0:01:21]} 31. Ra6 {[%emt 0:00:48]} Nxd4 {[%emt 0:05:36]} 32. Bxd4 {[%emt 0:00:57]} Qxd4 {[%emt 0:01:08]} 33. Rd1 {[%emt 0:03:11]} Qxc4 34. Bxc4 {[%emt 0:00:00]} Ne5 {[%emt 0:04:47]} 35. Bb3 {[%emt 0:00:23]} Bf8 {[%emt 0:00:17]} 36. Rc1 {[%emt 0:01:26]} Nd3 {[%emt 0:00:41]} 37. Rcxc6 {[%emt 0:00:39]} Nc5 {[%emt 0:00:04]} 38. Ba4 {[%emt 0:00:40]} Nxa6 {[%emt 0:00:14]} 39. Rxa6 {[%emt 0:00:01]} Bc5 {[%emt 0:00:30]} 40. Kf1 {[%emt 0:00:55]} Rxa7 {[%emt 0:00:17]} 41. Rxa7 {[%emt 0:30:26]} Bxa7 {[%emt 0:30:04]} 42. f3 {[%emt 0:00:00]} Bd4 {[%emt 0:00:00]} 43. Ke2 {[%emt 0:00:00]} Bc3 {[%emt 0:00:00]} 44. Kd3 {[%emt 0:00:00]} f5 {[%emt 0:00:00]} 45. Bb3 {[%emt 0:00:00]} Kf7 {[%emt 0:00:00]} 46. g4 {[%emt 0:00:00]} Kf6 {[%emt 0:00:00]} 47. gxf5 {[%emt 0:00:00]} exf5 {[%emt 0:00:00]} 48. Ke3 {[%emt 0:00:00]} Kg5 {[%emt 0:00:00]} 49. Bg8 {[%emt 0:00:00]} h6 {[%emt 0:00:00]} 50. Bf7 {[%emt 0:00:00]} Be5 {[%emt 0:00:00]} 51. h3 {[%emt 0:00:00]} Bg3 {[%emt 0:00:00]} 52. Ke2 {[%emt 0:00:00]} Kf6 {[%emt 0:00:00]} 53. Bb3 {[%emt 0:00:00]} Ke5 {[%emt 0:00:00]} 54. Ke3 {[%emt 0:00:00]} Bf4+ {[%emt 0:00:00]} 55. Kd3 {[%emt 0:00:00]} Bc1 {[%emt 0:00:00]} 56. Bf7 {[%emt 0:00:00]} g5 {[%emt 0:00:00]} 57. Bb3 {[%emt 0:02:33]} Kf4 {[%emt 0:00:00]} 58. Ke2 {[%emt 0:00:55]} Kg3 {[%emt 0:00:00]} 59. Be6 {[%emt 0:00:14]} Kxh3 {[%emt 0:00:00]} 60. Bxf5+ {[%emt 0:00:04]} Kg3 {[%emt 0:00:00]} 61. Bg4 {[%emt 0:04:46]} b3 {[%emt 0:00:08]} 62. Kd3 {[%emt 0:00:10]} b2 {[%emt 0:00:12]} 63. Kc2 {[%emt 0:00:04]} Kh4 {[%emt 0:00:13]} 64. Bf5 {[%emt 0:00:58]} h5 {[%emt 0:00:29]} 65. Bg6 {[%emt 0:00:17]} g4 {[%emt 0:00:08]} 66. fxg4 {[%emt 0:01:04]} hxg4 {[%emt 0:00:05]} 0-1

[Event "GER-chW 2019"]
[Site "Magdeburg"]
[Date "2019.05.30"]
[Round "7.2"]
[White "Kunze, Kerstin"]
[Black "Michna, Marta"]
[Result "0-1"]
[ECO "A45"]
[WhiteElo "2066"]
[BlackElo "2355"]
[Annotator "ChessBase"]
[PlyCount "130"]
[EventDate "2019.05.26"]
[EventType "tourn"]
[EventCountry "GER"]
[SourceTitle "playchess.com"]
[Source "ChessBase"]
[SourceQuality "1"]
[TimeControl "40/5400+30:1800+30"]

1. d4 {[%emt 0:00:00]} Nf6 {[%emt 0:00:22]} 2. g3 {[%emt 0:00:53]} d6 {[%emt 0:00:09]} 3. Bg2 {[%emt 0:00:08]} Nbd7 {[%emt 0:00:03]} 4. e4 {[%emt 0:00:59]} e5 {[%emt 0:00:08]} 5. Ne2 {[%emt 0:03:49]} Be7 {[%emt 0:00:26]} 6. O-O {[%emt 0:00:30]} c6 {[%emt 0:00:54]} 7. Kh1 {[%emt 0:08:53]} O-O {[%emt 0:04:23]} 8. c3 {[%emt 0:00:24]} Re8 {[%emt 0:01:05]} 9. Qc2 {[%emt 0:08:46]} Bf8 {[%emt 0:05:06]} 10. b3 {[%emt 0:03:52]} b6 {[%emt 0:02:19]} 11. Nd2 {[%emt 0:04:23]} Bb7 {[%emt 0:04:33]} 12. dxe5 {[%emt 0:22:36]} dxe5 {[%emt 0:02:05]} 13. f3 {[%emt 0:07:11]} Nc5 {[%emt 0:10:05]} 14. Nc4 {[%emt 0:05:23]} Qd3 {[%emt 0:02:31]} 15. Qxd3 {[%emt 0:02:32]} Nxd3 {[%emt 0:00:02]} 16. Bg5 {[%emt 0:00:18]} Bc5 {[%emt 0:19:40]} 17. Be3 {[%emt 0:19:35]} Ba6 {[%emt 0:00:41]} 18. Bxc5 {[%emt 0:01:32]} Nxc5 {[%emt 0:00:05]} 19. Rad1 {[%emt 0:04:08]} Rad8 {[%emt 0:04:07]} 20. Nc1 {[%emt 0:01:17]} Bxc4 {[%emt 0:00:14]} 21. bxc4 {[%emt 0:00:04]} Na4 {[%emt 0:00:21]} 22. Nd3 {[%emt 0:02:34]} Nxc3 {[%emt 0:00:17]} 23. Rd2 {[%emt 0:00:01]} Rd4 {[%emt 0:01:29]} 24. Rc1 {[%emt 0:00:49]} Na4 {[%emt 0:00:11]} 25. Bf1 {[%emt 0:00:29]} Red8 {[%emt 0:00:15]} 26. Kg1 {[%emt 0:00:54]} Nc5 {[%emt 0:01:03]} 27. Rc3 {[%emt 0:00:50]} h5 {[%emt 0:01:35]} 28. Be2 {[%emt 0:00:35]} h4 {[%emt 0:00:45]} 29. Kg2 {[%emt 0:00:09]} hxg3 {[%emt 0:00:20]} 30. hxg3 {[%emt 0:00:02]} g6 {[%emt 0:01:51]} 31. Ra3 {[%emt 0:00:30]} Kg7 {[%emt 0:02:00]} 32. Kf1 {[%emt 0:00:38]} a5 {[%emt 0:03:00]} 33. Ke1 {[%emt 0:00:02]} Nh5 {[%emt 0:01:09]} 34. Kf2 {[%emt 0:01:12]} g5 {[%emt 0:02:21]} 35. Rd1 {[%emt 0:00:08]} g4 {[%emt 0:01:43]} 36. Nxc5 {[%emt 0:00:08]} Rxd1 {[%emt 0:00:50]} 37. Bxd1 {[%emt 0:00:13]} Rxd1 {[%emt 0:00:04]} 38. fxg4 {[%emt 0:01:28]} Nf6 {[%emt 0:00:13]} 39. g5 {[%emt 0:00:44]} Ng4+ {[%emt 0:00:47]} 40. Kf3 {[%emt 0:00:16]} Nh2+ {[%emt 0:00:16]} 41. Ke2 {[%emt 0:03:00]} Rd4 {[%emt 0:00:29]} 42. Na4 {[%emt 0:01:05]} b5 {[%emt 0:03:12]} 43. cxb5 {[%emt 0:00:59]} cxb5 {[%emt 0:00:03]} 44. Nc5 {[%emt 0:00:06]} Rc4 {[%emt 0:00:25]} 45. Nb7 {[%emt 0:03:22]} a4 {[%emt 0:01:12]} 46. Nd6 {[%emt 0:03:54]} Rb4 {[%emt 0:01:06]} 47. Rd3 {[%emt 0:02:04]} Kg6 {[%emt 0:11:16]} 48. Rd5 {[%emt 0:01:11]} Rb2+ {[%emt 0:05:18]} 49. Rd2 {[%emt 0:07:51]} Rb1 {[%emt 0:00:25]} 50. Rd1 {[%emt 0:05:34]} Rxd1 {[%emt 0:00:43]} 51. Kxd1 {[%emt 0:00:04]} b4 {[%emt 0:00:03]} 52. Nc4 {[%emt 0:00:26]} Nf3 {[%emt 0:04:16]} 53. Kc1 {[%emt 0:02:34]} Kxg5 {[%emt 0:01:22]} 54. Nb2 {[%emt 0:01:08]} Kg4 {[%emt 0:05:35]} 55. Nxa4 {[%emt 0:00:37]} Kxg3 {[%emt 0:00:11]} 56. Kc2 {[%emt 0:00:07]} Kf4 {[%emt 0:01:41]} 57. Kd3 {[%emt 0:00:10]} f5 {[%emt 0:04:11]} 58. exf5 {[%emt 0:00:37]} e4+ {[%emt 0:00:01]} 59. Ke2 {[%emt 0:03:57]} Nd4+ {[%emt 0:00:05]} 60. Kf1 {[%emt 0:00:16]} Kf3 {[%emt 0:02:13]} 61. Nc5 {[%emt 0:01:02]} e3 {[%emt 0:01:41]} 62. Nd3 {[%emt 0:01:23]} e2+ {[%emt 0:00:15]} 63. Kg1 {[%emt 0:00:14]} Ke3 {[%emt 0:00:09]} 64. Ne1 {[%emt 0:00:50]} Nf3+ {[%emt 0:00:15]} 65. Kh1 {[%emt 0:00:20]} Nxe1 {[%emt 0:00:09]} 0-1

[Event "GER-chW 2019"]
[Site "Magdeburg"]
[Date "2019.05.30"]
[Round "7.3"]
[White "Erofeev, Anastasia"]
[Black "Burchardt, Brigitte"]
[Result "1/2-1/2"]
[ECO "D35"]
[WhiteElo "2003"]
[BlackElo "2094"]
[Annotator "NA"]
[PlyCount "26"]
[EventDate "2019.05.26"]
[EventType "tourn"]
[EventCountry "GER"]
[SourceTitle "playchess.com"]
[Source "ChessBase"]
[SourceQuality "1"]
[TimeControl "40/5400+30:1800+30"]

1. d4 {[%emt 0:00:00]} d5 {[%emt 0:00:00]} 2. c4 {[%emt 0:00:00]} e6 {[%emt 0:00:00]} 3. Nc3 {[%emt 0:00:00]} Nf6 {[%emt 0:00:00]} 4. cxd5 {[%emt 0:00:00]} exd5 {[%emt 0:00:00]} 5. Bg5 {[%emt 0:00:02]} Be7 {[%emt 0:01:34]} 6. e3 {[%emt 0:00:09]} c6 {[%emt 0:03:05]} 7. Qc2 {[%emt 0:00:32]} h6 {[%emt 0:01:26]} 8. Bh4 {[%emt 0:00:33]} O-O {[%emt 0:00:16]} 9. Bd3 {[%emt 0:00:23]} Re8 {[%emt 0:00:45]} 10. Nge2 {[%emt 0:00:14]} Nbd7 {[%emt 0:01:58]} 11. O-O {[%emt 0:00:15]} Ne4 {[%emt 0:07:29]} 12. Bxe7 {[%emt 0:04:31]} Qxe7 {[%emt 0:00:06]} 13. Nd1 {[%emt 0:07:26]} Ndf6 {[%emt 0:05:09]} 1/2-1/2

[Event "GER-chW 2019"]
[Site "Magdeburg"]
[Date "2019.05.30"]
[Round "7.4"]
[White "Von Herman, Brigitte"]
[Black "Mehling, Katharina"]
[Result "1/2-1/2"]
[ECO "C06"]
[WhiteElo "2064"]
[BlackElo "1974"]
[Annotator "NA"]
[PlyCount "31"]
[EventDate "2019.05.26"]
[EventType "tourn"]
[EventCountry "GER"]
[SourceTitle "playchess.com"]
[Source "ChessBase"]
[SourceQuality "1"]
[TimeControl "40/5400+30:1800+30"]

1. e4 {[%emt 0:00:00]} e6 {[%emt 0:00:00]} 2. d4 {[%emt 0:00:00]} d5 {[%emt 0:00:00]} 3. Nd2 {[%emt 0:00:00]} Nf6 {[%emt 0:00:00]} 4. e5 {[%emt 0:00:00]} Nfd7 {[%emt 0:00:00]} 5. Bd3 {[%emt 0:00:12]} c5 {[%emt 0:00:07]} 6. c3 {[%emt 0:00:06]} Nc6 {[%emt 0:00:06]} 7. Ne2 {[%emt 0:00:35]} cxd4 {[%emt 0:00:23]} 8. cxd4 {[%emt 0:00:08]} f6 {[%emt 0:00:15]} 9. exf6 {[%emt 0:00:30]} Nxf6 {[%emt 0:00:15]} 10. O-O {[%emt 0:01:06]} Bd6 {[%emt 0:00:20]} 11. f4 {[%emt 0:03:59]} Qb6 {[%emt 0:06:37]} 12. Nf3 {[%emt 0:04:20]} O-O {[%emt 0:09:07]} 13. Kh1 {[%emt 0:01:50]} Bd7 {[%emt 0:02:15]} 14. a3 {[%emt 0:02:42]} Na5 {[%emt 0:05:22]} 15. Nc3 {[%emt 0:17:54]} Rac8 {[%emt 0:07:08]} 16. Ne5 {[%emt 0:04:40]} 1/2-1/2

[Event "GER-chW 2019"]
[Site "Magdeburg"]
[Date "2019.05.30"]
[Round "7.5"]
[White "Liu, Sijia Anna"]
[Black "Schmidt, Jade"]
[Result "0-1"]
[ECO "B56"]
[WhiteElo "1689"]
[BlackElo "2062"]
[Annotator "NA"]
[PlyCount "78"]
[EventDate "2019.05.26"]
[EventType "tourn"]
[EventCountry "GER"]
[SourceTitle "playchess.com"]
[Source "ChessBase"]
[SourceQuality "1"]
[TimeControl "40/5400+30:1800+30"]

1. e4 {[%emt 0:00:00]} c5 {[%emt 0:00:00]} 2. Nf3 {[%emt 0:00:00]} d6 {[%emt 0:00:00]} 3. d4 {[%emt 0:00:12]} cxd4 {[%emt 0:00:08]} 4. Nxd4 {[%emt 0:00:16]} Nf6 {[%emt 0:00:10]} 5. Nc3 {[%emt 0:00:10]} Nc6 {[%emt 0:00:20]} 6. g3 {[%emt 0:01:31]} Bg4 {[%emt 0:01:02]} 7. f3 {[%emt 0:00:42]} Nxd4 {[%emt 0:03:04]} 8. Qxd4 Bxf3 {[%emt 0:05:57]} 9. Bb5+ {[%emt 0:03:07]} Nd7 {[%emt 0:00:17]} 10. Rf1 {[%emt 0:00:35]} Bg4 {[%emt 0:27:41]} 11. Qd5 {[%emt 0:03:22]} Be6 {[%emt 0:01:24]} 12. Qxb7 {[%emt 0:02:37]} Qc8 {[%emt 0:06:32]} 13. Bc6 {[%emt 0:13:58]} Qxb7 {[%emt 0:01:22]} 14. Bxb7 {[%emt 0:02:11]} Rb8 {[%emt 0:00:09]} 15. Bc6 {[%emt 0:01:39]} g6 {[%emt 0:06:51]} 16. Nd5 {[%emt 0:03:56]} Rc8 {[%emt 0:04:57]} 17. Ba4 {[%emt 0:03:26]} Rc4 {[%emt 0:03:46]} 18. Nc3 {[%emt 0:07:09]} Bg7 {[%emt 0:00:19]} 19. Bxd7+ {[%emt 0:03:23]} Bxd7 {[%emt 0:06:32]} 20. Bd2 {[%emt 0:01:53]} Bc6 {[%emt 0:00:41]} 21. O-O-O {[%emt 0:02:09]} Bxe4 {[%emt 0:02:30]} 22. Rf4 {[%emt 0:03:12]} f5 {[%emt 0:08:43]} 23. Nxe4 {[%emt 0:11:02]} Rxe4 {[%emt 0:02:08]} 24. Rxe4 {[%emt 0:01:16]} fxe4 {[%emt 0:00:05]} 25. Be3 {[%emt 0:02:34]} a6 {[%emt 0:06:44]} 26. c4 {[%emt 0:06:49]} Kd7 {[%emt 0:01:32]} 27. Bf4 {[%emt 0:09:06]} Rc8 {[%emt 0:03:40]} 28. b3 {[%emt 0:00:47]} Rc5 {[%emt 0:04:42]} 29. Be3 {[%emt 0:05:18]} Rf5 {[%emt 0:01:11]} 30. Kc2 {[%emt 0:03:49]} e6 {[%emt 0:01:06]} 31. Rd2 {[%emt 0:05:15]} Kc6 {[%emt 0:00:23]} 32. b4 {[%emt 0:02:13]} d5 {[%emt 0:00:38]} 33. g4 {[%emt 0:01:06]} Rf3 {[%emt 0:00:19]} 34. cxd5+ {[%emt 0:00:58]} exd5 {[%emt 0:00:06]} 35. Bc5 {[%emt 0:00:39]} Rc3+ {[%emt 0:01:10]} 36. Kd1 {[%emt 0:00:36]} e3 {[%emt 0:01:08]} 37. Re2 {[%emt 0:00:55]} d4 {[%emt 0:00:13]} 38. h3 {[%emt 0:00:36]} Kd5 {[%emt 0:00:13]} 39. Rg2 {[%emt 0:00:30]} Ke4 {[%emt 0:00:45]} 0-1

[Event "GER-chW 2019"]
[Site "Magdeburg"]
[Date "2019.05.30"]
[Round "7.6"]
[White "Zimmer, Elke"]
[Black "Just, Anita"]
[Result "1-0"]
[ECO "C02"]
[WhiteElo "1926"]
[BlackElo "1866"]
[Annotator "NA"]
[PlyCount "123"]
[EventDate "2019.05.26"]
[EventType "tourn"]
[EventCountry "GER"]
[SourceTitle "playchess.com"]
[Source "ChessBase"]
[SourceQuality "1"]
[TimeControl "40/5400+30:1800+30"]

1. e4 {[%emt 0:00:00]} e6 {[%emt 0:00:00]} 2. d4 {[%emt 0:00:48]} d5 {[%emt 0:00:00]} 3. e5 {[%emt 0:01:35]} c5 {[%emt 0:00:01]} 4. c3 {[%emt 0:00:08]} Nc6 {[%emt 0:00:15]} 5. Nf3 {[%emt 0:00:26]} Qb6 {[%emt 0:00:17]} 6. Be2 {[%emt 0:00:39]} cxd4 {[%emt 0:01:14]} 7. cxd4 {[%emt 0:00:43]} Bd7 {[%emt 0:01:45]} 8. Nc3 {[%emt 0:01:22]} Rc8 {[%emt 0:12:53]} 9. O-O {[%emt 0:04:19]} Nge7 {[%emt 0:03:25]} 10. Na4 {[%emt 0:06:31]} Qc7 {[%emt 0:03:20]} 11. b3 {[%emt 0:00:21]} b5 {[%emt 0:17:28]} 12. Bxb5 {[%emt 0:13:57]} Nxe5 {[%emt 0:03:57]} 13. Ba6 {[%emt 0:04:23]} Nxf3+ {[%emt 0:04:00]} 14. Qxf3 {[%emt 0:02:31]} Ng6 {[%emt 0:08:32]} 15. Bxc8 {[%emt 0:01:10]} Bxc8 {[%emt 0:01:03]} 16. Be3 {[%emt 0:04:51]} Bd6 {[%emt 0:03:57]} 17. Rfc1 {[%emt 0:01:21]} Qd8 {[%emt 0:02:46]} 18. g3 {[%emt 0:00:56]} O-O {[%emt 0:02:36]} 19. h4 {[%emt 0:00:54]} e5 {[%emt 0:13:58]} 20. Bg5 {[%emt 0:06:21]} Qd7 {[%emt 0:04:08]} 21. Qxd5 {[%emt 0:03:30]} exd4 {[%emt 0:08:08]} 22. Nc5 {[%emt 0:02:40]} Bxc5 {[%emt 0:01:02]} 23. Rxc5 {[%emt 0:00:19]} Qh3 {[%emt 0:01:15]} 24. Qg2 {[%emt 0:01:19]} Qg4 {[%emt 0:00:45]} 25. f3 {[%emt 0:01:39]} Qe6 {[%emt 0:00:56]} 26. Qf2 {[%emt 0:02:27]} h6 {[%emt 0:00:14]} 27. Bd2 {[%emt 0:02:07]} Qh3 {[%emt 0:00:44]} 28. Re1 {[%emt 0:02:22]} Bb7 {[%emt 0:00:15]} 29. Qg2 {[%emt 0:03:16]} Qd7 {[%emt 0:00:19]} 30. Bb4 {[%emt 0:01:13]} d3 {[%emt 0:01:14]} 31. h5 {[%emt 0:01:51]} Qd4+ {[%emt 0:00:22]} 32. Qf2 {[%emt 0:01:42]} Qxb4 {[%emt 0:00:14]} 33. hxg6 {[%emt 0:02:42]} Bxf3 {[%emt 0:02:09]} 34. Rc4 {[%emt 0:00:52]} Qb6 {[%emt 0:00:36]} 35. Qxb6 {[%emt 0:19:41]} axb6 {[%emt 0:00:02]} 36. Rd4 {[%emt 0:00:07]} Be2 {[%emt 0:00:32]} 37. gxf7+ {[%emt 0:00:23]} Rxf7 {[%emt 0:00:12]} 38. Rc1 {[%emt 0:00:27]} Rf3 {[%emt 0:01:12]} 39. Kg2 {[%emt 0:00:08]} Rf7 {[%emt 0:00:08]} 40. Rc8+ {[%emt 0:00:12]} Kh7 {[%emt 0:00:08]} 41. a4 {[%emt 0:31:10]} Bf1+ {[%emt 0:30:17]} 42. Kg1 {[%emt 0:00:21]} Be2 {[%emt 0:00:09]} 43. Rc6 {[%emt 0:00:58]} Rb7 {[%emt 0:03:15]} 44. Kf2 {[%emt 0:00:38]} Rf7+ {[%emt 0:01:27]} 45. Ke3 {[%emt 0:00:29]} b5 {[%emt 0:00:00]} 46. a5 {[%emt 0:00:00]} Re7+ {[%emt 0:00:00]} 47. Kd2 {[%emt 0:00:00]} Bf1 {[%emt 0:00:00]} 48. Rxd3 {[%emt 0:00:00]} Re2+ {[%emt 0:00:00]} 49. Kc3 {[%emt 0:00:00]} Ra2 {[%emt 0:00:00]} 50. Rd1 {[%emt 0:00:00]} Bg2 {[%emt 0:00:00]} 51. Ra6 {[%emt 0:00:00]} Be4 {[%emt 0:00:00]} 52. Rd4 {[%emt 0:00:00]} Bf3 {[%emt 0:01:48]} 53. Ra7 {[%emt 0:00:00]} Rg2 {[%emt 0:02:00]} 54. Rd3 {[%emt 0:00:00]} Be2 {[%emt 0:00:18]} 55. Re3 {[%emt 0:00:00]} Bf1 {[%emt 0:00:21]} 56. Ra8 {[%emt 0:00:00]} h5 {[%emt 0:00:21]} 57. a6 {[%emt 0:00:00]} Ra2 {[%emt 0:00:25]} 58. Kb4 {[%emt 0:00:00]} Kg6 {[%emt 0:00:28]} 59. Re5 {[%emt 0:00:00]} Rb2 {[%emt 0:00:35]} 60. Rf8 {[%emt 0:00:00]} Ra2 {[%emt 0:00:29]} 61. Rxf1 {[%emt 0:00:00]} Rxa6 {[%emt 0:00:12]} 62. Rxb5 {[%emt 0:00:00]} 1-0

[Event "GER-chW 2019"]
[Site "Magdeburg"]
[Date "2019.05.30"]
[Round "7.7"]
[White "Perez Celis, Alba"]
[Black "Braun, Kristin"]
[Result "1/2-1/2"]
[ECO "B20"]
[WhiteElo "1822"]
[BlackElo "1895"]
[Annotator "NA"]
[PlyCount "99"]
[EventDate "2019.05.26"]
[EventType "tourn"]
[EventCountry "GER"]
[SourceTitle "playchess.com"]
[Source "ChessBase"]
[SourceQuality "1"]
[TimeControl "40/5400+30:1800+30"]

1. e4 {[%emt 0:00:00]} c5 {[%emt 0:00:00]} 2. Ne2 {[%emt 0:00:17]} Nc6 {[%emt 0:00:00]} 3. g3 {[%emt 0:00:16]} g6 {[%emt 0:00:00]} 4. Bg2 {[%emt 0:00:08]} Bg7 {[%emt 0:00:00]} 5. Nbc3 {[%emt 0:00:22]} e6 {[%emt 0:00:09]} 6. O-O {[%emt 0:00:59]} Nge7 {[%emt 0:00:14]} 7. d3 {[%emt 0:00:49]} O-O {[%emt 0:02:34]} 8. f4 {[%emt 0:00:24]} d5 {[%emt 0:01:54]} 9. e5 {[%emt 0:03:36]} a6 {[%emt 0:04:40]} 10. a4 {[%emt 0:02:14]} Rb8 {[%emt 0:01:54]} 11. Qe1 {[%emt 0:07:02]} Nb4 {[%emt 0:13:21]} 12. Qd2 {[%emt 0:03:36]} b5 {[%emt 0:03:47]} 13. axb5 {[%emt 0:00:45]} axb5 {[%emt 0:00:22]} 14. Nd1 {[%emt 0:00:16]} Qb6 {[%emt 0:03:02]} 15. c3 {[%emt 0:04:05]} Nbc6 {[%emt 0:00:38]} 16. Ne3 {[%emt 0:01:22]} Na5 {[%emt 0:04:43]} 17. Qc2 {[%emt 0:03:38]} c4 {[%emt 0:02:14]} 18. Nd4 {[%emt 0:00:41]} Nec6 {[%emt 0:01:16]} 19. Nxc6 {[%emt 0:13:06]} Nxc6 {[%emt 0:00:01]} 20. Kh1 {[%emt 0:02:51]} Na5 {[%emt 0:07:01]} 21. Ng4 {[%emt 0:11:27]} Qc7 {[%emt 0:10:44]} 22. Be3 {[%emt 0:01:34]} Nb3 {[%emt 0:05:40]} 23. Ra7 {[%emt 0:08:49]} Rb7 {[%emt 0:00:34]} 24. Rxb7 {[%emt 0:01:52]} Bxb7 {[%emt 0:00:24]} 25. d4 {[%emt 0:02:52]} Ra8 {[%emt 0:02:41]} 26. Nf6+ {[%emt 0:00:40]} Bxf6 {[%emt 0:04:47]} 27. exf6 {[%emt 0:00:27]} Qd8 {[%emt 0:00:18]} 28. f5 {[%emt 0:00:20]} Qxf6 {[%emt 0:03:16]} 29. fxg6 {[%emt 0:00:42]} Qxg6 {[%emt 0:00:07]} 30. Qf2 {[%emt 0:02:06]} Ra1 {[%emt 0:04:33]} 31. Rxa1 {[%emt 0:02:19]} Nxa1 {[%emt 0:00:01]} 32. Qf4 {[%emt 0:00:13]} Bc6 {[%emt 0:09:10]} 33. Qb8+ {[%emt 0:04:46]} Kg7 {[%emt 0:00:01]} 34. h3 {[%emt 0:00:23]} Nc2 {[%emt 0:04:41]} 35. Bf4 {[%emt 0:00:32]} Ne1 {[%emt 0:00:50]} 36. Be5+ {[%emt 0:01:00]} f6 {[%emt 0:01:28]} 37. Qc7+ {[%emt 0:13:09]} Qf7 {[%emt 0:00:04]} 38. Bxf6+ {[%emt 0:02:25]} Kxf6 {[%emt 0:00:31]} 39. Qe5+ {[%emt 0:00:23]} Kg6 {[%emt 0:00:18]} 40. Qxe1 {[%emt 0:00:19]} Bd7 {[%emt 0:03:40]} 41. Qe2 {[%emt 0:20:55]} Qf5 {[%emt 0:02:07]} 42. Kh2 {[%emt 0:01:21]} Kf6 {[%emt 0:03:27]} 43. Bf3 {[%emt 0:02:08]} Ke7 {[%emt 0:01:59]} 44. Bg4 {[%emt 0:03:11]} Qf6 {[%emt 0:01:56]} 45. h4 {[%emt 0:00:29]} h6 {[%emt 0:01:52]} 46. Kh3 {[%emt 0:00:16]} Qg6 {[%emt 0:06:24]} 47. Qe5 {[%emt 0:01:51]} Qf6 {[%emt 0:00:33]} 48. Qc7 {[%emt 0:00:48]} Qf1+ {[%emt 0:01:33]} 49. Kh2 {[%emt 0:00:41]} Qf2+ {[%emt 0:02:17]} 50. Kh3 1/2-1/2

[Event "GER-chW 2019"]
[Site "Magdeburg"]
[Date "2019.05.30"]
[Round "7.8"]
[White "Bashylina, Luisa"]
[Black "Kopylov, Luba"]
[Result "1-0"]
[ECO "B53"]
[WhiteElo "1812"]
[BlackElo "2078"]
[Annotator "NA"]
[PlyCount "79"]
[EventDate "2019.05.26"]
[EventType "tourn"]
[EventCountry "GER"]
[SourceTitle "playchess.com"]
[Source "ChessBase"]
[SourceQuality "1"]
[TimeControl "40/5400+30:1800+30"]

1. e4 {[%emt 0:00:00]} c5 {[%emt 0:00:00]} 2. Nf3 {[%emt 0:00:00]} d6 {[%emt 0:00:00]} 3. d4 {[%emt 0:00:00]} cxd4 {[%emt 0:00:00]} 4. Qxd4 {[%emt 0:00:04]} Nc6 {[%emt 0:00:52]} 5. Bb5 {[%emt 0:00:06]} Qa5+ {[%emt 0:00:41]} 6. Nc3 {[%emt 0:00:30]} Qxb5 {[%emt 0:00:55]} 7. Nxb5 {[%emt 0:00:09]} Nxd4 {[%emt 0:00:07]} 8. Nfxd4 {[%emt 0:01:19]} Kd7 {[%emt 0:00:19]} 9. Be3 {[%emt 0:03:28]} Nf6 {[%emt 0:04:08]} 10. f3 {[%emt 0:00:37]} a6 {[%emt 0:01:58]} 11. Nc3 {[%emt 0:00:49]} b6 {[%emt 0:03:09]} 12. O-O-O {[%emt 0:01:45]} Kc7 {[%emt 0:01:13]} 13. Rhe1 {[%emt 0:05:22]} Bb7 {[%emt 0:05:08]} 14. Nb3 {[%emt 0:12:15]} Nd7 {[%emt 0:03:54]} 15. Bd4 {[%emt 0:07:58]} Bc6 {[%emt 0:01:54]} 16. Kb1 {[%emt 0:05:02]} Rg8 {[%emt 0:03:45]} 17. Nc1 {[%emt 0:03:15]} g5 {[%emt 0:04:47]} 18. Nd3 {[%emt 0:06:08]} g4 {[%emt 0:07:44]} 19. f4 {[%emt 0:02:06]} g3 {[%emt 0:02:27]} 20. h3 {[%emt 0:00:55]} Bh6 {[%emt 0:01:09]} 21. Nd5+ {[%emt 0:03:36]} Bxd5 {[%emt 0:00:45]} 22. exd5 {[%emt 0:00:06]} Rae8 {[%emt 0:00:32]} 23. Re2 {[%emt 0:08:17]} Bg7 {[%emt 0:09:02]} 24. Bxg7 {[%emt 0:00:41]} Rxg7 {[%emt 0:00:07]} 25. Rde1 {[%emt 0:02:41]} f5 {[%emt 0:00:49]} 26. Nb4 {[%emt 0:01:44]} Nb8 {[%emt 0:01:52]} 27. c4 {[%emt 0:02:05]} a5 {[%emt 0:04:23]} 28. Nc2 {[%emt 0:00:45]} Kd7 {[%emt 0:06:00]} 29. Nd4 {[%emt 0:00:45]} Rf7 {[%emt 0:00:07]} 30. Re3 {[%emt 0:01:15]} Rg8 {[%emt 0:00:42]} 31. Ne6 {[%emt 0:00:32]} h6 {[%emt 0:00:23]} 32. Rb3 {[%emt 0:00:21]} Na6 {[%emt 0:23:56]} 33. Rxb6 {[%emt 0:00:23]} Nb4 {[%emt 0:01:50]} 34. Re3 {[%emt 0:00:57]} Rf6 {[%emt 0:01:57]} 35. Rb7+ {[%emt 0:05:34]} Ke8 {[%emt 0:00:34]} 36. Rb8+ {[%emt 0:00:05]} Kf7 {[%emt 0:00:07]} 37. Rxg8 {[%emt 0:00:04]} Kxg8 {[%emt 0:00:08]} 38. Rxg3+ {[%emt 0:00:10]} Kf7 {[%emt 0:00:15]} 39. Rg7+ {[%emt 0:00:09]} Ke8 {[%emt 0:00:09]} 40. Rg8+ {[%emt 0:00:10]} 1-0